bitfinex/quotes_BTCUSD_20240820
["timestamp","ask_amount","ask_price","bid_price","bid_amount"]
[1724191034486,0.168166,59465.0,59459.0,0.16818]
[1724191034688,0.168169,59464.0,59459.0,0.16818]
[1724191034894,0.168169,59464.0,59460.0,0.16818]
[1724191035092,0.1361,59463.0,59460.0,0.16818]
[1724191035520,0.1361,59463.0,59456.0,0.336377]
[1724191035521,0.1361,59463.0,59456.0,0.336382]
[1724191035726,0.1361,59463.0,59461.0,0.028]
[1724191035727,0.168174,59462.0,59461.0,0.028]
[1724191035930,0.168174,59462.0,59461.0,0.014]
[1724191036132,0.168174,59462.0,59457.0,0.168188]
[1724191036346,0.168174,59462.0,59460.0,0.014]
[1724191036980,0.168174,59462.0,59461.0,0.014]
[1724191037188,0.168174,59462.0,59458.0,0.168185]
[1724191037804,0.168178,59461.0,59457.0,0.168188]
[1724191038008,0.168174,59462.0,59457.0,0.168188]
[1724191038423,0.168174,59462.0,59457.0,0.182188]
[1724191038629,0.169174,59462.0,59460.0,0.014]
[1724191039023,0.168174,59462.0,59457.0,0.182188]
[1724191039348,0.169174,59462.0,59457.0,0.196188]
[1724191039547,0.169174,59462.0,59457.0,0.182188]
[1724191039949,0.170174,59462.0,59460.0,0.014]
[1724191040358,0.168174,59462.0,59460.0,0.014]
[1724191042087,0.01556576,59461.0,59460.0,0.014]
[1724191042490,0.18374276,59461.0,59460.0,0.014]
[1724191042742,0.25004276,59461.0,59460.0,0.014]
[1724191042946,0.25004276,59461.0,59456.0,0.168189]
[1724191043192,0.01556576,59460.0,59456.0,0.168189]
[1724191043627,0.01556576,59460.0,59457.0,0.168188]
[1724191044417,0.001,59460.0,59457.0,0.168188]
[1724191044617,0.01556622,59459.0,59457.0,0.168188]
[1724191044817,0.01556622,59458.0,59457.0,0.168188]
[1724191046544,0.01556622,59458.0,59457.0,0.182188]
[1724191046925,0.01556622,59458.0,59457.0,0.196188]
[1724191047127,0.01556622,59458.0,59457.0,0.182188]
[1724191047602,0.01656622,59458.0,59457.0,0.196188]
[1724191048010,0.01656622,59458.0,59457.0,0.1970911]
[1724191050090,0.01656622,59458.0,59457.0,0.0289031]
[1724191052461,0.01656555,59458.0,59457.0,0.0289031]
[1724191052769,0.01656555,59458.0,59457.0,0.1970911]
[1724191053158,0.01656555,59458.0,59457.0,0.0289031]
[1724191055363,0.52112155,59458.0,59457.0,0.0289031]
[1724191055518,0.18475055,59458.0,59457.0,0.0289031]
[1724191056356,0.18375055,59458.0,59457.0,0.0009031]
[1724191056726,0.18475055,59458.0,59457.0,0.0149031]
[1724191057398,0.99569255,59458.0,59457.0,0.0149031]
[1724191057854,0.99469255,59458.0,59457.0,0.0009031]
[1724191058045,0.99569255,59458.0,59457.0,0.0149031]
[1724191058598,0.99569255,59458.0,59457.0,0.0289031]
[1724191058999,0.99569255,59458.0,59457.0,0.0149031]
[1724191059371,0.99469255,59458.0,59457.0,0.0009031]
[1724191059701,0.99569255,59458.0,59457.0,0.0149031]
[1724191059903,0.99569255,59458.0,59457.0,0.0279031]
[1724191060708,0.980127,59458.0,59457.0,0.0279031]
[1724191060907,0.99569322,59458.0,59457.0,0.0279031]
[1724191061107,0.980127,59458.0,59457.0,0.0279031]
[1724191061309,0.99569335,59458.0,59457.0,0.0279031]
[1724191067752,1.33206435,59458.0,59457.0,0.0279031]
[1724191069239,1.316498,59458.0,59457.0,0.0279031]
[1724191069440,1.33206598,59458.0,59457.0,0.0279031]
[1724191069646,1.36206598,59458.0,59457.0,0.0279031]
[1724191070881,1.46206598,59458.0,59457.0,0.0279031]
[1724191072517,1.46106598,59458.0,59457.0,0.0009031]
[1724191072950,1.46106598,59458.0,59457.0,0.0149031]
[1724191072951,1.46206598,59458.0,59457.0,0.0149031]
[1724191073898,1.46206622,59458.0,59457.0,0.0149031]
[1724191074176,1.46106622,59458.0,59457.0,0.0129031]
[1724191074714,1.46106622,59458.0,59457.0,0.0009031]
[1724191075122,1.46206622,59458.0,59457.0,0.0119031]
[1724191075756,1.46206622,59458.0,59457.0,0.0149031]
[1724191075996,1.46106622,59458.0,59457.0,0.0009031]
[1724191076211,1.46106622,59458.0,59457.0,0.0049031]
[1724191076411,1.46206622,59458.0,59457.0,0.0169031]
[1724191077758,1.46206744,59458.0,59457.0,0.0169031]
[1724191081122,1.46206736,59458.0,59457.0,0.0169031]
[1724191081329,1.79843836,59458.0,59457.0,0.0169031]
[1724191081532,1.82143836,59458.0,59457.0,0.0169031]
[1724191081937,2.15880936,59458.0,59457.0,0.0169031]
[1724191082845,2.16173051,59458.0,59457.0,0.0129031]
[1724191083066,2.16073051,59458.0,59457.0,0.0009031]
[1724191083285,1.82435951,59458.0,59457.0,0.0009031]
[1724191083491,1.82535951,59458.0,59457.0,0.0069031]
[1724191083676,1.82243836,59458.0,59457.0,0.0069031]
[1724191083833,1.82443836,59458.0,59457.0,0.0069031]
[1724191084212,1.82243836,59458.0,59457.0,0.0069031]
[1724191084427,1.82443836,59458.0,59457.0,0.0069031]
[1724191084837,1.809869,59458.0,59457.0,0.0069031]
[1724191084969,1.82544156,59458.0,59457.0,0.0069031]
[1724191085393,1.82544159,59458.0,59457.0,0.0069031]
[1724191085862,1.82744159,59458.0,59457.0,0.0069031]
[1724191089210,1.82744156,59458.0,59457.0,0.0069031]
[1724191097706,1.811869,59458.0,59457.0,0.0069031]
[1724191097915,2.14824,59458.0,59457.0,0.0069031]
[1724191098116,1.82744181,59458.0,59457.0,0.0069031]
[1724191099241,2.16381281,59458.0,59457.0,0.0069031]
[1724191099919,2.16381276,59458.0,59457.0,0.0069031]
[1724191100287,2.15981276,59458.0,59457.0,0.0069031]
[1724191100490,2.16181276,59458.0,59457.0,0.0069031]
[1724191101069,2.16381291,59458.0,59457.0,0.0069031]
[1724191104107,1.82744191,59458.0,59457.0,0.0069031]
[1724191104917,2.16381291,59458.0,59457.0,0.0069031]
[1724191105486,2.14824,59458.0,59457.0,0.0069031]
[1724191105716,2.16381267,59458.0,59457.0,0.0069031]
[1724191107315,1.82744167,59458.0,59457.0,0.0069031]
[1724191109298,1.65424167,59458.0,59457.0,0.0069031]
[1724191109674,1.44247067,59458.0,59457.0,0.0069031]
[1724191109878,1.44247067,59458.0,59457.0,0.16951341]
[1724191109879,1.32487067,59458.0,59457.0,0.16951341]
[1724191110079,0.63972867,59458.0,59457.0,0.1541031]
[1724191111067,0.63872867,59458.0,59457.0,0.1481031]
[1724191111267,0.63852627,59458.0,59457.0,0.1481031]
[1724191111468,0.63952627,59458.0,59457.0,0.1611031]
[1724191111816,0.63852627,59458.0,59457.0,0.1611031]
[1724191111998,0.97489727,59458.0,59457.0,0.1661031]
[1724191113030,0.85729727,59458.0,59457.0,0.18271341]
[1724191113627,0.85729165,59458.0,59457.0,0.1661031]
[1724191114025,0.91631085,59458.0,59457.0,0.1661031]
[1724191114359,0.52092065,59458.0,59457.0,0.1661031]
[1724191114712,0.52092065,59458.0,59457.0,0.1611031]
[1724191115297,0.52192065,59458.0,59457.0,0.1681031]
[1724191115878,0.52092065,59458.0,59457.0,0.1611031]
[1724191116061,0.52192065,59458.0,59457.0,0.1691031]
[1724191116208,0.52192065,59458.0,59457.0,0.1561031]
[1724191116421,0.52092065,59458.0,59457.0,0.1561031]
[1724191116618,0.52092065,59458.0,59457.0,0.1701031]
[1724191117451,0.5053536,59458.0,59457.0,0.1701031]
[1724191117700,0.52091987,59458.0,59457.0,0.1701031]
[1724191118011,0.01738827,59458.0,59457.0,0.18711341]
[1724191119325,0.18557327,59458.0,59457.0,0.18711341]
[1724191119527,0.18557327,59458.0,59457.0,0.1701031]
[1724191121443,0.18557269,59458.0,59457.0,0.1701031]
[1724191121826,0.170007,59458.0,59457.0,0.1701031]
[1724191122025,0.18557269,59458.0,59457.0,0.1701031]
[1724191122296,0.000821,59466.0,59465.0,0.1409]
[1724191122521,0.000821,59466.0,59465.0,0.53202529]
[1724191122736,0.000821,59466.0,59465.0,1.20568929]
[1724191122893,0.000821,59466.0,59465.0,1.24144929]
[1724191123096,0.000821,59466.0,59465.0,0.8082962]
[1724191123269,0.000821,59466.0,59465.0,0.17466]
[1724191123489,0.000821,59466.0,59465.0,0.1409]
[1724191123739,0.000821,59466.0,59465.0,0.1549]
[1724191124131,0.000821,59466.0,59465.0,0.309066]
[1724191124346,0.000821,59466.0,59465.0,0.659398]
[1724191124671,0.000821,59466.0,59465.0,0.254474]
[1724191124871,0.000821,59466.0,59465.0,0.1549]
[1724191125557,0.000821,59466.0,59465.0,0.1409]
[1724191125757,0.000821,59466.0,59465.0,0.1549]
[1724191126144,0.000821,59466.0,59465.0,0.1689]
[1724191135559,0.168984,59466.0,59465.0,0.1689]
[1724191135756,0.168984,59466.0,59465.0,0.1075]
[1724191135982,0.01637975,59466.0,59465.0,0.1075]
[1724191136185,0.18454271,59466.0,59465.0,0.1075]
[1724191137613,0.85719488,59466.0,59465.0,0.028]
[1724191139067,0.85719488,59466.0,59465.0,0.014]
[1724191139627,0.840857,59463.0,59462.0,0.0797]
[1724191139829,0.50454,59460.0,59459.0,0.0009042]
[1724191140083,0.52009888,59460.0,59459.0,0.0009042]
[1724191140511,0.85645888,59460.0,59459.0,0.0009042]
[1724191141120,0.8564616,59460.0,59459.0,0.0009042]
[1724191141325,0.8564616,59460.0,59459.0,0.0149042]
[1724191141526,0.8564616,59460.0,59459.0,0.0289042]
[1724191141674,0.9211616,59460.0,59459.0,0.0149042]
[1724191141876,0.9211616,59460.0,59459.0,0.0249042]
[1724191142654,0.8564616,59460.0,59459.0,0.0109042]
[1724191142899,0.8564616,59460.0,59459.0,0.0249042]
[1724191143353,1.1928216,59460.0,59459.0,0.0249042]
[1724191143673,1.3385216,59460.0,59459.0,0.0249042]
[1724191145057,1.33852402,59460.0,59459.0,0.0249042]
[1724191148688,1.33852406,59460.0,59459.0,0.0249042]
[1724191152560,1.33852387,59460.0,59459.0,0.0249042]
[1724191156442,1.32296,59460.0,59459.0,0.0249042]
[1724191156645,1.33852387,59460.0,59459.0,0.0249042]
[1724191157016,1.32296,59460.0,59459.0,0.0249042]
[1724191157216,1.33852387,59460.0,59459.0,0.0249042]
[1724191160613,1.177298,59458.0,59457.0,0.0008073]
[1724191160937,1.31046187,59458.0,59457.0,0.0008073]
[1724191162092,1.31046187,59458.0,59457.0,0.0148073]
[1724191163096,1.31146187,59458.0,59457.0,0.0268073]
[1724191164728,1.295898,59458.0,59457.0,0.0268073]
[1724191164923,1.31146228,59458.0,59457.0,0.0268073]
[1724191168193,1.37048466,59458.0,59457.0,0.0268073]
[1724191169026,1.295898,59458.0,59457.0,0.0268073]
[1724191169471,1.31146228,59458.0,59457.0,0.0268073]
[1724191174255,1.37736228,59458.0,59457.0,0.0268073]
[1724191175554,1.25976228,59458.0,59457.0,0.0268073]
[1724191175752,1.37736228,59458.0,59457.0,0.0268073]
[1724191176367,1.39497029,59458.0,59457.0,0.0268073]
[1724191176777,1.39497019,59458.0,59457.0,0.0268073]
[1724191178212,1.39579219,59458.0,59457.0,0.0268073]
[1724191184613,1.73216319,59458.0,59457.0,0.0268073]
[1724191184808,1.73216408,59458.0,59457.0,0.0268073]
[1724191189530,1.66626408,59458.0,59457.0,0.1745073]
[1724191189675,1.66626408,59458.0,59457.0,0.1090073]
[1724191192744,1.65069901,59458.0,59457.0,0.0268073]
[1724191192946,1.72906389,59458.0,59457.0,0.0268073]
[1724191193325,1.71349901,59458.0,59457.0,0.0268073]
[1724191193483,1.66626393,59458.0,59457.0,0.0268073]
[1724191195033,1.6660615,59458.0,59457.0,0.0268073]
[1724191199336,1.66606188,59458.0,59457.0,0.0268073]
[1724191200186,1.66506188,59458.0,59457.0,0.0148073]
[1724191200419,2.14353288,59458.0,59457.0,0.0198073]
[1724191200626,2.60250388,59458.0,59457.0,0.0198073]
[1724191200840,2.60250388,59458.0,59457.0,0.0008073]
[1724191200841,2.59750824,59458.0,59457.0,0.0008073]
[1724191201271,1.744106,59441.0,59440.0,0.0009031]
[1724191201477,1.93727566,59441.0,59440.0,0.0009031]
[1724191201691,2.03727566,59441.0,59440.0,0.0009031]
[1724191201905,2.39674366,59441.0,59440.0,0.0009031]
[1724191202111,2.41435761,59441.0,59440.0,0.0009031]
[1724191202329,2.39674366,59441.0,59440.0,0.0009031]
[1724191202539,2.47724366,59441.0,59440.0,0.0119031]
[1724191202750,2.81771166,59441.0,59440.0,0.0009031]
[1724191203370,2.81771166,59441.0,59417.0,0.0818]
[1724191203371,1.295693,59418.0,59417.0,0.0818]
[1724191203786,1.3112705,59418.0,59417.0,0.0818]
[1724191204002,0.168316,59412.0,59411.0,0.0009042]
[1724191204222,0.1838935,59412.0,59411.0,0.0009042]
[1724191204657,1.1937895,59412.0,59411.0,0.0773042]
[1724191205307,0.83601955,59412.0,59411.0,0.0773042]
[1724191205560,0.83536838,59412.0,59411.0,0.0009042]
[1724191205771,1.17100038,59412.0,59411.0,0.0009042]
[1724191205982,1.67083238,59412.0,59411.0,0.0009042]
[1724191206189,1.69383238,59412.0,59411.0,0.0009042]
[1724191206398,2.03046438,59412.0,59411.0,0.0009042]
[1724191207073,2.10666438,59412.0,59411.0,0.0019042]
[1724191207750,2.10666438,59412.0,59411.0,0.0009042]
[1724191207956,2.22526438,59412.0,59411.0,0.0019042]
[1724191208804,1.60963238,59412.0,59411.0,0.0019042]
[1724191209023,1.29060038,59412.0,59411.0,0.0019042]
[1724191209229,1.19062049,59412.0,59411.0,0.0834042]
[1724191210293,0.85398849,59412.0,59411.0,0.1476042]
[1724191210498,0.85398849,59412.0,59411.0,0.16236462]
[1724191210908,0.51735649,59412.0,59411.0,0.16236462]
[1724191211114,0.51635649,59412.0,59411.0,0.16136462]
[1724191211319,0.51535649,59412.0,59411.0,0.1466042]
[1724191211524,0.51635649,59412.0,59411.0,0.1476042]
[1724191211733,0.85398849,59412.0,59411.0,0.1476042]
[1724191211960,0.85298849,59412.0,59411.0,0.1476042]
[1724191212461,0.85398849,59412.0,59411.0,0.1476042]
[1724191212980,0.85298849,59412.0,59411.0,0.1466042]
[1724191213294,0.85398849,59412.0,59411.0,0.1526042]
[1724191213534,0.01962011,59412.0,59411.0,0.1526042]
[1724191213800,0.18793611,59412.0,59411.0,0.1526042]
[1724191214034,0.18793611,59412.0,59411.0,0.16786462]
[1724191216415,0.01962011,59412.0,59411.0,0.17086462]
[1724191217054,0.01762011,59412.0,59411.0,0.16486462]
[1724191217234,0.01762011,59412.0,59411.0,0.16186462]
[1724191217386,0.01762011,59412.0,59411.0,0.17586462]
[1724191217582,0.01762011,59412.0,59411.0,0.16186462]
[1724191217789,0.01762011,59412.0,59411.0,0.17586462]
[1724191217988,0.01762011,59412.0,59411.0,0.18986462]
[1724191218796,0.01762011,59412.0,59411.0,0.35918262]
[1724191219004,0.01762011,59412.0,59411.0,0.69781962]
[1724191219197,0.01762011,59412.0,59411.0,0.68381962]
[1724191219499,0.168288,59422.0,59418.0,0.0636]
[1724191219697,0.168291,59421.0,59419.0,0.0782]
[1724191219812,0.168291,59421.0,59420.0,0.09528]
[1724191220446,0.168291,59421.0,59420.0,0.09228]
[1724191220685,0.504872,59421.0,59420.0,0.09228]
[1724191221179,0.505872,59421.0,59420.0,0.11728]
[1724191222930,0.505872,59421.0,59420.0,0.11828]
[1724191223130,0.001,59421.0,59420.0,0.11828]
[1724191223334,0.001,59421.0,59420.0,0.11728]
[1724191223534,0.001,59421.0,59420.0,0.11828]
[1724191223989,0.001,59421.0,59420.0,0.348873]
[1724191224329,0.01761683,59428.0,59427.0,0.989567]
[1724191224547,0.336419,59450.0,59443.0,0.002]
[1724191224755,0.168222,59445.0,59444.0,0.0778]
[1724191224960,0.50990254,59447.0,59445.0,0.0664]
[1724191224961,0.017611,59447.0,59445.0,0.0664]
[1724191225161,0.185828,59447.0,59446.0,0.0778]
[1724191225913,0.017611,59447.0,59446.0,0.0778]
[1724191226862,0.017611,59447.0,59446.0,0.0908]
[1724191227418,0.017611,59447.0,59446.0,0.1048]
[1724191235334,0.017611,59447.0,59446.0,0.0918]
[1724191236234,0.017611,59447.0,59446.0,0.1058]
[1724191236612,0.017611,59447.0,59446.0,0.0778]
[1724191236824,0.018433,59447.0,59446.0,0.0918]
[1724191237020,0.018433,59447.0,59446.0,0.1058]
[1724191237432,0.018433,59447.0,59446.0,0.1198]
[1724191239194,0.18665,59447.0,59446.0,0.1198]
[1724191239399,0.018433,59447.0,59446.0,0.3505677]
[1724191240275,0.018433,59447.0,59446.0,0.3525677]
[1724191240682,0.018433,59447.0,59446.0,0.6880067]
[1724191240891,0.018433,59447.0,59446.0,0.6900067]
[1724191241494,0.018433,59447.0,59446.0,0.6880067]
[1724191241729,0.018433,59447.0,59446.0,1.0899457]
[1724191241929,0.000822,59458.0,59456.0,0.0655]
[1724191242060,0.000822,59458.0,59457.0,0.08586323]
[1724191242465,0.000822,59458.0,59457.0,0.25405123]
[1724191243091,0.000822,59458.0,59457.0,0.250688]
[1724191243747,0.000822,59458.0,59457.0,0.0825]
[1724191243948,0.000822,59458.0,59457.0,0.1316395]
[1724191244803,0.000822,59458.0,59457.0,0.1346395]
[1724191245002,0.000822,59458.0,59457.0,0.1426395]
[1724191245201,0.000822,59458.0,59457.0,0.6442045]
[1724191245427,0.000822,59458.0,59457.0,0.6452045]
[1724191246062,0.000822,59458.0,59457.0,0.6522045]
[1724191246264,0.000822,59458.0,59457.0,0.6442045]
[1724191246806,0.000822,59458.0,59457.0,0.6452045]
[1724191247131,0.000822,59458.0,59457.0,0.9935815]
[1724191247330,0.000822,59458.0,59457.0,0.9945815]
[1724191247535,0.000822,59458.0,59457.0,0.9925815]
[1724191247748,0.000822,59458.0,59457.0,0.9805815]
[1724191247948,0.000822,59458.0,59457.0,0.9755815]
[1724191248123,0.000822,59458.0,59457.0,0.9735815]
[1724191248326,0.000822,59458.0,59457.0,0.9925815]
[1724191248525,0.000822,59458.0,59457.0,0.9945815]
[1724191249081,0.000822,59458.0,59457.0,0.6562045]
[1724191249281,0.000822,59458.0,59457.0,0.6492045]
[1724191249527,0.01637926,59458.0,59457.0,0.6372045]
[1724191249735,0.01637926,59458.0,59457.0,1.3773585]
[1724191249944,0.000822,59458.0,59457.0,1.4123585]
[1724191250349,0.000822,59458.0,59457.0,1.4003585]
[1724191250544,0.000822,59458.0,59457.0,2.1789855]
[1724191250915,0.000822,59460.0,59459.0,1.354031]
[1724191251117,0.000822,59460.0,59459.0,1.477031]
[1724191251732,0.000822,59460.0,59459.0,1.813397]
[1724191251938,0.000821,59466.0,59465.0,1.352012]
[1724191252148,0.000821,59466.0,59465.0,1.375012]
[1724191252352,0.000821,59466.0,59465.0,1.5125132]
[1724191252959,0.000821,59466.0,59465.0,1.1164312]
[1724191253157,0.000821,59466.0,59465.0,0.7800992]
[1724191253366,0.000821,59466.0,59465.0,0.641598]
[1724191253583,0.000821,59466.0,59465.0,0.581198]
[1724191253787,0.000821,59466.0,59465.0,0.0907]
[1724191253995,0.99648918,59466.0,59465.0,0.014]
[1724191254218,0.99648918,59466.0,59449.0,0.13482042]
[1724191254219,0.168199,59454.0,59449.0,0.00336324]
[1724191254426,0.01555318,59453.0,59448.0,0.336428]
[1724191254634,0.336368,59459.0,59450.0,0.0033637]
[1724191254635,0.01555318,59452.0,59450.0,0.0033637]
[1724191254868,0.336368,59459.0,59450.0,0.0033637]
[1724191254869,0.01555318,59451.0,59450.0,0.0033637]
[1724191255076,0.01555318,59451.0,59450.0,0.19313527]
[1724191255283,0.01555318,59451.0,59450.0,0.168208]
[1724191255497,0.33635,59462.0,59447.0,0.0777]
[1724191255498,0.05901246,59464.0,59451.0,0.0604]
[1724191255704,0.000821,59466.0,59462.0,0.168174]
[1724191255705,0.01555631,59463.0,59462.0,0.168174]
[1724191255920,0.01555631,59463.0,59462.0,0.504522]
[1724191256126,0.000821,59466.0,59465.0,0.508498]
[1724191256746,0.01637215,59466.0,59465.0,0.508498]
[1724191256946,0.06997,59473.0,59467.0,0.16816]
[1724191257148,0.06997,59473.0,59465.0,0.4386266]
[1724191257149,0.01555125,59472.0,59468.0,0.168157]
[1724191257372,0.01555125,59472.0,59465.0,0.4386266]
[1724191257373,0.01555125,59471.0,59470.0,0.92566]
[1724191257579,0.00817,59473.0,59472.0,0.507438]
[1724191257783,0.00817,59473.0,59472.0,0.84473]
[1724191257991,0.00817,59473.0,59472.0,1.284922]
[1724191258203,0.00817,59473.0,59472.0,1.4200242]
[1724191258630,0.00817,59473.0,59472.0,1.4190242]
[1724191258842,0.00817,59473.0,59472.0,1.4310242]
[1724191259045,0.00817,59473.0,59472.0,1.4320242]
[1724191259252,0.00817,59473.0,59472.0,1.4330242]
[1724191259666,0.00817,59473.0,59472.0,2.70617479]
[1724191259869,0.00822,59481.0,59478.0,0.921845]
[1724191260085,0.00822,59481.0,59478.0,1.258103]
[1724191260298,0.00822,59481.0,59478.0,1.292853]
[1724191260714,0.00822,59481.0,59478.0,1.293853]
[1724191260918,0.00822,59483.0,59482.0,0.84059]
[1724191261127,0.00822,59483.0,59482.0,1.358576]
[1724191261338,0.00822,59483.0,59482.0,1.43226867]
[1724191261541,0.00822,59483.0,59482.0,1.382576]
[1724191261752,0.00822,59483.0,59482.0,1.43224302]
[1724191261962,0.00822,59483.0,59482.0,1.59622206]
[1724191262404,0.00821,59490.0,59489.0,1.274536]
[1724191262622,0.00821,59490.0,59489.0,0.84049]
[1724191262829,0.00821,59490.0,59483.0,0.21876325]
[1724191262830,0.0637,59489.0,59483.0,0.21876325]
[1724191263029,0.231798,59489.0,59484.0,0.26738754]
[1724191263239,0.0637,59489.0,59479.0,0.04965125]
[1724191263451,0.336258,59478.0,59468.0,0.04965125]
[1724191263682,0.1445,59479.0,59465.0,0.03375]
[1724191263683,0.168145,59473.0,59469.0,0.04248913]
[1724191263884,0.01555046,59472.0,59467.0,0.168159]
[1724191263996,0.002,59476.0,59467.0,0.168159]
[1724191263997,0.01555046,59471.0,59467.0,0.168159]
[1724191264202,0.01555046,59470.0,59465.0,0.336327]
[1724191264403,0.0767,59470.0,59465.0,0.336327]
[1724191264692,0.0767,59470.0,59467.0,0.168157]
[1724191264693,0.08115159,59469.0,59467.0,0.168157]
[1724191264891,0.0656,59469.0,59468.0,0.2186054]
[1724191265101,0.08115267,59469.0,59468.0,0.2186054]
[1724191265814,0.01555267,59469.0,59468.0,0.2186054]
[1724191266046,0.0809,59476.0,59468.0,0.00336261]
[1724191266249,0.01555061,59475.0,59474.0,0.16814]
[1724191266451,0.01555061,59475.0,59474.0,0.503421]
[1724191266631,0.01555061,59475.0,59474.0,0.585121]
[1724191266826,0.01555061,59475.0,59474.0,0.6438331]
[1724191267030,0.01555061,59475.0,59474.0,0.9791141]
[1724191267227,0.0668,59483.0,59479.0,0.168124]
[1724191267455,0.0668,59483.0,59474.0,0.4766931]
[1724191267456,0.00821,59490.0,59489.0,0.504294]
[1724191267656,0.00821,59490.0,59489.0,0.8899194]
[1724191267866,0.00821,59490.0,59489.0,1.2261154]
[1724191268417,0.00821,59490.0,59489.0,1.2251154]
[1724191269155,0.00821,59490.0,59489.0,1.2391154]
[1724191269570,0.00821,59490.0,59489.0,0.9029194]
[1724191270038,0.00821,59490.0,59489.0,0.9169194]
[1724191270245,0.00821,59490.0,59489.0,1.4139654]
[1724191270460,0.00821,59490.0,59489.0,1.4009654]
[1724191270665,0.00821,59490.0,59489.0,1.58962913]
[1724191270874,0.00841,59499.0,59498.0,0.168072]
[1724191271519,0.00841,59499.0,59498.0,0.248072]
[1724191271740,0.00841,59499.0,59498.0,1.280507]
[1724191271947,0.00011,59505.0,59496.0,0.04975162]
[1724191271948,0.06,59505.0,59496.0,0.04975162]
[1724191272153,0.06,59505.0,59497.0,0.02238823]
[1724191272365,0.061,59505.0,59498.0,0.00336088]
[1724191272579,0.061,59505.0,59498.0,0.33614]
[1724191272780,0.061,59505.0,59499.0,0.168068]
[1724191272781,0.01554124,59504.0,59499.0,0.168068]
[1724191273009,0.01554124,59503.0,59496.0,0.336153]
[1724191273220,0.01554124,59503.0,59502.0,0.504184]
[1724191273221,0.0621,59503.0,59502.0,0.504184]
[1724191273425,0.0843409,59508.0,59507.0,0.168047]
[1724191273672,0.0843409,59508.0,59507.0,0.504141]
[1724191273877,0.0843409,59508.0,59507.0,0.5881665]
[1724191274079,0.0843409,59508.0,59507.0,0.2520725]
[1724191274292,0.0843409,59508.0,59505.0,0.168051]
[1724191274471,0.0843409,59508.0,59503.0,0.336114]
[1724191274704,0.0843409,59508.0,59505.0,0.168052]
[1724191274933,0.0843409,59508.0,59503.0,0.336114]
[1724191274934,0.0222409,59508.0,59503.0,0.336114]
[1724191275146,0.0222409,59508.0,59507.0,0.168047]
[1724191275955,0.1000409,59508.0,59507.0,0.022]
[1724191276334,0.1000409,59508.0,59507.0,0.008]
[1724191276546,0.34762552,59508.0,59507.0,0.022]
[1724191276751,1.01980352,59508.0,59507.0,0.022]
[1724191276960,1.01980352,59508.0,59498.0,0.168071]
[1724191276961,0.168056,59504.0,59498.0,0.168071]
[1724191277164,0.01554062,59503.0,59499.0,0.168069]
[1724191277367,0.01554062,59503.0,59500.0,0.504198]
[1724191277583,0.001,59505.0,59500.0,0.168066]
[1724191277584,0.01554062,59502.0,59500.0,0.168066]
[1724191277793,0.002,59505.0,59501.0,0.168063]
[1724191278003,0.002,59505.0,59500.0,0.168066]
[1724191278004,0.01554268,59504.0,59500.0,0.168066]
[1724191278211,0.003,59505.0,59500.0,0.168066]
[1724191278212,0.01554268,59503.0,59500.0,0.168066]
[1724191278421,0.003,59505.0,59499.0,0.168069]
[1724191278422,0.01554268,59502.0,59499.0,0.168069]
[1724191278621,0.169053,59505.0,59495.0,0.33636233]
[1724191278622,0.01554268,59501.0,59500.0,0.168067]
[1724191278828,0.002,59505.0,59501.0,0.168063]
[1724191279028,0.002,59505.0,59501.0,0.014]
[1724191279029,0.01554246,59504.0,59501.0,0.014]
[1724191279233,0.01554246,59503.0,59501.0,0.014]
[1724191280063,0.8332269,59508.0,59501.0,0.6185991]
[1724191280064,0.01554288,59502.0,59501.0,0.6185991]
[1724191280269,0.0832409,59508.0,59507.0,0.168047]
[1724191280478,0.03778275,59508.0,59507.0,0.168047]
[1724191280680,0.03778275,59508.0,59507.0,0.840235]
[1724191280885,0.0222409,59508.0,59507.0,1.176329]
[1724191281091,0.0222409,59508.0,59507.0,1.2941619]
[1724191281706,0.0222409,59508.0,59507.0,1.3081619]
[1724191281916,0.0222409,59508.0,59507.0,1.3191619]
[1724191282320,0.0222409,59508.0,59507.0,1.201329]
[1724191285672,0.0230619,59508.0,59507.0,1.201329]
[1724191286809,1e-08,59508.0,59507.0,1.201329]
[1724191288795,1e-08,59508.0,59507.0,1.190329]
[1724191288972,1e-08,59508.0,59507.0,1.176329]
[1724191289138,1e-08,59508.0,59507.0,1.2940619]
[1724191289338,1e-08,59508.0,59507.0,1.3080619]
[1724191289736,0.00815279,59512.0,59511.0,0.84018]
[1724191290154,0.02369174,59512.0,59511.0,0.84018]
[1724191290538,0.02369174,59512.0,59511.0,0.91568]
[1724191291270,0.02369174,59512.0,59511.0,0.92968]
[1724191291471,0.02369174,59512.0,59511.0,0.94368]
[1724191291669,0.02369174,59512.0,59511.0,1.00765556]
[1724191292345,0.02369174,59512.0,59511.0,0.99365556]
[1724191292579,0.02369174,59512.0,59511.0,1.00765556]
[1724191292961,0.02369174,59512.0,59511.0,0.532108]
[1724191292962,0.02369187,59512.0,59511.0,0.532108]
[1724191293164,0.33242487,59512.0,59511.0,0.028]
[1724191293322,1.00455687,59512.0,59511.0,0.028]
[1724191293527,1.34062287,59512.0,59511.0,0.028]
[1724191293730,1.34062287,59512.0,59511.0,0.014]
[1724191293934,1.34062287,59512.0,59511.0,0.028]
[1724191294136,1.34062287,59512.0,59501.0,0.0009031]
[1724191294137,0.843307,59502.0,59501.0,0.0009031]
[1724191294340,1.34137353,59502.0,59501.0,0.0009031]
[1724191295314,1.40034806,59502.0,59501.0,0.0009031]
[1724191295845,1.40034806,59502.0,59501.0,0.0149031]
[1724191296043,1.34137353,59502.0,59501.0,0.0149031]
[1724191296328,1.485849,59496.0,59482.0,0.0009031]
[1724191296531,1.943249,59496.0,59482.0,0.0009031]
[1724191296702,1.95879715,59496.0,59482.0,0.0009031]
[1724191297508,1.95879715,59496.0,59495.0,0.00920233]
[1724191297509,1.96079715,59496.0,59495.0,0.00920233]
[1724191297914,1.96079715,59496.0,59495.0,0.00820233]
[1724191298144,1.95979715,59496.0,59495.0,0.00110543]
[1724191298346,1.96079715,59496.0,59495.0,0.00210543]
[1724191299117,2.31995415,59496.0,59495.0,0.00210543]
[1724191299337,0.843575,59483.0,59482.0,0.0009031]
[1724191299561,0.99772315,59483.0,59482.0,0.0009031]
[1724191300399,0.982175,59483.0,59482.0,0.0009031]
[1724191300611,0.99772559,59483.0,59482.0,0.0009031]
[1724191301226,0.99772559,59483.0,59482.0,0.0099031]